bitfinex-derivatives/quotes_BTCF0:USTF0_20251103
["timestamp","ask_amount","ask_price","bid_price","bid_amount"]
[1762207540624,0.2837159,106710.0,106700.0,0.1382674]
[1762207540939,0.2837159,106710.0,106700.0,0.8276274]
[1762207541128,0.1899853,106710.0,106700.0,0.8276274]
[1762207541517,0.19940133,106710.0,106700.0,0.8276274]
[1762207541834,0.19940133,106710.0,106700.0,1.1884274]
[1762207542526,0.03469,106720.0,106710.0,0.1382586]
[1762207542731,0.1482653,106730.0,106710.0,0.4990586]
[1762207542931,0.1767653,106750.0,106740.0,0.1382322]
[1762207543130,0.04472,106750.0,106740.0,0.4668322]
[1762207543326,0.04472,106750.0,106740.0,0.8276322]
[1762207543527,0.1384135,106750.0,106740.0,0.8276322]
[1762207543828,0.2704588,106750.0,106740.0,0.73393]
[1762207544134,0.2704588,106750.0,106740.0,0.8276323]
[1762207544627,0.1158023,106740.0,106730.0,0.3608]
[1762207544822,0.2833776,106740.0,106730.0,0.7319]
[1762207545331,0.2833776,106740.0,106730.0,0.04254]
[1762207545634,0.2833776,106740.0,106720.0,0.38186]
[1762207545635,0.1374511,106730.0,106720.0,0.38186]
[1762207545933,0.2694964,106730.0,106720.0,0.73182]
[1762207546229,0.2694964,106730.0,106720.0,0.40334]
[1762207546433,0.2694964,106730.0,106720.0,0.04254]
[1762207546625,0.1513498,106720.0,106710.0,0.40334]
[1762207546826,0.2833951,106720.0,106710.0,0.40334]
[1762207547429,0.2833951,106720.0,106710.0,0.4970686]
[1762207548032,0.05763,106720.0,106710.0,0.4970686]
[1762207548431,0.05863,106720.0,106710.0,0.4970686]
[1762207549239,0.1523499,106720.0,106710.0,0.4970686]
[1762207549534,0.05863,106720.0,106710.0,0.4970686]
[1762207549724,0.1523499,106720.0,106710.0,0.4970686]
[1762207551236,0.1523499,106720.0,106710.0,0.40334]
[1762207552636,0.2843952,106720.0,106710.0,0.4970687]
[1762207552837,0.2843952,106720.0,106710.0,0.40334]
[1762207553531,0.2843952,106720.0,106700.0,0.68928]
[1762207553831,0.269514,106710.0,106700.0,0.40334]
[1762207554738,0.269514,106710.0,106700.0,0.4970775]
[1762207555539,0.269514,106710.0,106700.0,0.40334]
[1762207555837,0.270514,106710.0,106700.0,0.40334]
[1762207556836,0.284404,106710.0,106700.0,0.40334]
[1762207557639,0.1513762,106690.0,106680.0,0.40334]
[1762207557834,0.2834215,106690.0,106680.0,0.40334]
[1762207558537,0.2834215,106690.0,106680.0,0.04254]
[1762207558727,0.6114215,106690.0,106680.0,0.04254]
[1762207558927,0.6114215,106690.0,106680.0,0.04354]
[1762207560434,0.6114215,106690.0,106680.0,0.001]
[1762207560635,0.6114215,106690.0,106670.0,0.00011416]
[1762207560636,0.137495,106680.0,106670.0,0.00011416]
[1762207560835,0.7623856,106680.0,106670.0,0.00011416]
[1762207561342,0.1375037,106670.0,106660.0,0.0030938]
[1762207561533,0.98073558,106670.0,106660.0,0.0030938]
[1762207562439,0.98185557,106670.0,106660.0,0.0030938]
[1762207562641,0.84981027,106670.0,106660.0,0.0030938]
[1762207562845,0.62105557,106670.0,106660.0,0.4576663]
[1762207563035,0.62105557,106670.0,106660.0,0.0030938]
[1762207563935,0.62105557,106670.0,106660.0,0.3638938]
[1762207564135,0.62105557,106670.0,106660.0,0.4576663]
[1762207564337,0.62105557,106670.0,106660.0,0.3849538]
[1762207564532,0.62105557,106670.0,106660.0,0.0030938]
[1762207564731,1.21621557,106670.0,106660.0,0.0030938]
[1762207565145,0.1375213,106650.0,106640.0,0.70986]
[1762207565440,0.1514201,106640.0,106630.0,0.3608]
[1762207565637,0.1514377,106620.0,106610.0,7.992e-05]
[1762207565842,0.61176116,106620.0,106610.0,7.992e-05]
[1762207566040,0.63410558,106620.0,106610.0,7.992e-05]
[1762207566343,0.1514553,106600.0,106590.0,0.34926]
[1762207566647,0.1375741,106590.0,106580.0,0.40643612]
[1762207566845,0.2696194,106590.0,106580.0,0.04563612]
[1762207567038,0.6304194,106590.0,106580.0,0.00309612]
[1762207567353,0.63049196,106590.0,106580.0,0.00309612]
[1762207568043,0.63999239,106590.0,106580.0,0.00309612]
[1762207569134,0.63999239,106590.0,106580.0,0.13947902]
[1762207569339,0.96835239,106590.0,106580.0,0.04563612]
[1762207569749,0.96835239,106590.0,106580.0,0.02415612]
[1762207569933,0.54615829,106590.0,106580.0,0.13947912]
[1762207570130,0.74239299,106590.0,106580.0,0.13947912]
[1762207570333,0.05331299,106590.0,106580.0,0.13947912]
[1762207570938,0.04381256,106590.0,106580.0,0.13947912]
[1762207571236,0.13764676,106590.0,106580.0,0.73467612]
[1762207571442,0.13764676,106590.0,106580.0,0.37387612]
[1762207571443,0.26969206,106590.0,106580.0,0.37387612]
[1762207571736,0.63049206,106590.0,106580.0,0.02415612]
[1762207571937,0.63049206,106590.0,106580.0,0.00309612]
[1762207572336,0.96815992,106590.0,106580.0,0.00309612]
[1762207572535,0.96815992,106590.0,106580.0,0.04563612]
[1762207572736,0.96815992,106590.0,106580.0,0.13947912]
[1762207573136,0.73293256,106590.0,106580.0,0.13947912]
[1762207573336,0.82676676,106590.0,106580.0,0.13947912]
[1762207573640,0.73293256,106590.0,106580.0,0.13947912]
[1762207573942,0.04381256,106590.0,106580.0,0.13947912]
[1762207574140,0.13764676,106590.0,106580.0,0.13947912]
[1762207574540,0.13764676,106590.0,106580.0,0.50027912]
[1762207574740,0.13764676,106590.0,106580.0,0.13947912]
[1762207575143,0.13764676,106590.0,106580.0,0.04563612]
[1762207575342,0.13764676,106590.0,106580.0,0.13947902]
[1762207576543,0.13764676,106590.0,106580.0,0.04563612]
[1762207576844,0.26969206,106590.0,106580.0,0.13947902]
[1762207577036,0.04381256,106590.0,106580.0,0.15155902]
[1762207577644,0.13764666,106590.0,106580.0,0.15155902]
[1762207577946,0.13764666,106590.0,106580.0,0.13947902]
[1762207578747,0.26969196,106590.0,106580.0,0.13947902]
[1762207579443,0.5115819,106620.0,106610.0,0.04416]
[1762207579647,0.1507819,106620.0,106610.0,0.1379765]
[1762207579839,0.41335139,106630.0,106620.0,0.1379677]
[1762207580035,0.37204,106630.0,106620.0,0.1379677]
[1762207580343,0.01389,106640.0,106620.0,0.4987677]
[1762207580544,0.37212,106640.0,106630.0,0.1379589]
[1762207580745,0.5071467,106650.0,106640.0,0.02227]
[1762207581042,0.5071467,106650.0,106620.0,0.3732]
[1762207581043,0.1368789,106630.0,106620.0,0.3732]
[1762207581251,0.1368789,106630.0,106620.0,0.04416]
[1762207581252,0.5979642,106630.0,106620.0,0.04416]
[1762207581642,0.9587642,106630.0,106620.0,0.04416]
[1762207581847,0.5979642,106630.0,106620.0,0.1379678]
[1762207582043,0.4659189,106630.0,106620.0,0.1379678]
[1762207582242,0.5104913,106640.0,106630.0,0.1379589]
[1762207582437,0.95887422,106650.0,106640.0,0.1379501]
[1762207583649,0.96087422,106650.0,106640.0,0.1379501]
[1762207583844,0.97001625,106650.0,106640.0,0.04416]
[1762207584049,0.96801625,106650.0,106640.0,0.04416]
[1762207584246,0.96901625,106650.0,106640.0,0.1379501]
[1762207584447,0.83697095,106650.0,106640.0,0.1379501]
[1762207584849,0.47617095,106650.0,106640.0,0.1379501]
[1762207585145,0.83697095,106650.0,106640.0,0.1379501]
[1762207585344,0.83697095,106650.0,106640.0,0.04416]
[1762207585949,0.47617095,106650.0,106640.0,0.1379502]
[1762207586144,0.83697095,106650.0,106640.0,0.1379502]
[1762207586747,0.14713095,106650.0,106640.0,0.1379502]
[1762207586948,0.83677095,106650.0,106640.0,0.1379502]
[1762207587144,0.47597095,106650.0,106640.0,0.1379502]
[1762207588143,0.38218325,106650.0,106640.0,0.1379502]
[1762207588354,0.47596465,106650.0,106640.0,0.1379502]
[1762207589661,0.1525902,106640.0,106630.0,0.4036]
[1762207589866,0.139039,106630.0,106620.0,0.4652878]
[1762207590062,0.139039,106630.0,106620.0,0.8260878]
[1762207590363,0.139039,106630.0,106620.0,0.37148]
[1762207590554,0.139039,106630.0,106620.0,0.4652878]
[1762207591254,0.139039,106630.0,106620.0,0.37148]
[1762207591454,0.1294078,106620.0,106610.0,0.4546161]
[1762207591654,0.24952443,106620.0,106610.0,0.0212]
[1762207592059,0.61032443,106620.0,106610.0,0.0428]
[1762207592454,0.61032443,106620.0,106610.0,0.0212]
[1762207592654,0.1390566,106610.0,106600.0,0.37148]
[1762207592859,0.23586055,106610.0,106600.0,0.4653054]
[1762207593061,0.59666055,106610.0,106600.0,0.4653054]
[1762207593461,0.59666055,106610.0,106600.0,0.37148]
[1762207593964,0.59666055,106610.0,106600.0,0.37348]
[1762207594167,0.59666055,106610.0,106600.0,0.4673053]
[1762207594769,0.4998565,106610.0,106600.0,0.4673053]
[1762207595662,0.1390565,106610.0,106600.0,0.4673053]
[1762207596355,0.03571268,106620.0,106610.0,0.1150165]
[1762207596555,0.48128068,106620.0,106610.0,0.1366165]
[1762207596863,0.15272068,106620.0,106610.0,0.1366165]
[1762207597460,0.15272068,106620.0,106610.0,0.1491165]
[1762207599362,0.15272068,106620.0,106610.0,0.5099165]
[1762207600863,0.15272068,106620.0,106610.0,0.1491165]
[1762207601069,0.15272068,106620.0,106610.0,0.5099165]
[1762207602474,0.15272038,106620.0,106610.0,0.5099165]
[1762207602873,0.15272038,106620.0,106610.0,0.1491165]
[1762207603266,0.24952433,106620.0,106610.0,0.0553]
[1762207603472,0.61032433,106620.0,106610.0,0.0553]
[1762207604376,0.61032433,106620.0,106610.0,0.1491165]
[1762207604572,0.51352038,106620.0,106610.0,0.1491165]
[1762207605277,0.15272038,106620.0,106610.0,0.1491165]
[1762207605580,0.00011268,106620.0,106610.0,0.5099165]
[1762207606069,0.02309268,106620.0,106610.0,0.5099165]
[1762207608075,0.09392048,106620.0,106610.0,0.5099165]
[1762207608276,0.00011268,106620.0,106610.0,0.5099165]
[1762207609275,0.00011268,106620.0,106610.0,0.79456717]
[1762207611475,0.00011268,106620.0,106610.0,0.79656717]
[1762207612977,0.15318048,106620.0,106610.0,0.56208717]
[1762207613177,0.05937268,106620.0,106610.0,0.88984717]
[1762207613480,0.04608268,106620.0,106610.0,0.88984717]
[1762207613680,0.11690048,106620.0,106610.0,0.88984717]
[1762207613880,0.02309268,106620.0,106610.0,0.88984717]
[1762207614082,0.00011268,106620.0,106610.0,1.12432717]
[1762207614476,0.00011268,106620.0,106610.0,1.12232717]
[1762207615183,0.00011268,106620.0,106610.0,0.88984717]
[1762207615380,0.00011268,106620.0,106610.0,1.12432717]
[1762207615574,0.00011268,106620.0,106610.0,1.12232717]
[1762207615774,0.00011268,106620.0,106610.0,1.12432717]
[1762207616484,0.00011268,106620.0,106610.0,0.88984717]
[1762207616978,0.00011268,106620.0,106610.0,1.12432717]
[1762207617778,0.00011268,106620.0,106610.0,0.88984717]
[1762207617977,0.00011268,106620.0,106610.0,1.12432717]
[1762207618285,0.00011268,106620.0,106610.0,0.9852765]
[1762207618476,0.11690038,106620.0,106610.0,0.6575165]
[1762207618785,0.02309268,106620.0,106610.0,1.03547834]
[1762207620375,0.09392038,106620.0,106610.0,1.03547834]
[1762207620575,0.15318038,106620.0,106610.0,0.70587834]
[1762207620781,0.15318038,106620.0,106610.0,1.03539834]
[1762207621284,0.15318038,106620.0,106610.0,1.03339834]
[1762207621985,0.05937268,106620.0,106610.0,1.03339834]
[1762207623983,0.05937268,106620.0,106610.0,0.8374365]
[1762207624387,0.04608268,106620.0,106610.0,0.8374365]
[1762207625175,0.04608268,106620.0,106610.0,0.90409974]
[1762207625380,0.04608268,106620.0,106610.0,0.8374365]
[1762207625581,0.13989048,106620.0,106610.0,0.8374365]
[1762207626080,0.15318048,106620.0,106610.0,0.8374365]
[1762207627686,0.15318048,106620.0,106610.0,0.0553]
[1762207627887,0.63255754,106620.0,106610.0,0.0125]
[1762207628188,0.63255754,106620.0,106600.0,0.4112535]
[1762207628189,0.1530766,106610.0,106600.0,0.0504535]
[1762207628384,0.1397953,106600.0,106590.0,0.4222535]
[1762207628691,0.1530853,106600.0,106590.0,0.09500573]
[1762207628890,0.1530853,106600.0,106590.0,0.18883983]
[1762207629385,0.1530853,106600.0,106590.0,0.09500573]
[1762207629579,0.05926,106600.0,106590.0,0.18883983]
[1762207629784,0.1530853,106600.0,106590.0,0.56000983]
[1762207629985,0.1510853,106600.0,106590.0,0.56000983]
[1762207630183,0.1510853,106600.0,106590.0,0.54963983]
[1762207630384,0.1510853,106600.0,106590.0,0.18883983]
[1762207630588,0.1510853,106600.0,106590.0,0.55263983]
[1762207632395,0.15318468,106620.0,106610.0,0.1383366]
[1762207632589,0.15318468,106620.0,106610.0,0.4655766]
[1762207633293,0.15318048,106620.0,106610.0,0.4655766]
[1762207634390,0.15318048,106620.0,106610.0,0.87686233]
[1762207634594,0.00011268,106620.0,106610.0,0.88354233]
[1762207634893,0.00011268,106620.0,106610.0,0.8330566]
[1762207635094,0.00011268,106620.0,106610.0,0.89971984]
[1762207635901,0.15245038,106620.0,106610.0,0.89303984]
[1762207636190,0.00011268,106620.0,106610.0,0.90071984]
[1762207636497,0.15245038,106620.0,106610.0,0.8273766]
[1762207637085,0.02344268,106620.0,106610.0,0.8340566]
[1762207637292,0.15245038,106620.0,106610.0,0.8330566]
[1762207637496,0.13981038,106620.0,106610.0,0.8330566]
[1762207637888,0.04600268,106620.0,106610.0,0.8330566]
[1762207638101,0.00011268,106620.0,106610.0,0.8330566]
[1762207638490,0.15245048,106620.0,106610.0,0.8330566]
[1762207639284,0.15245048,106620.0,106610.0,0.8340566]
[1762207639487,0.04600268,106620.0,106610.0,0.8340566]
[1762207639682,0.04600268,106620.0,106610.0,0.8330566]
[1762207639890,0.13981048,106620.0,106610.0,0.8330566]
[1762207640090,0.05864268,106620.0,106610.0,0.8330566]
[1762207640293,0.15245048,106620.0,106610.0,0.8330566]
[1762207641198,0.15245048,106620.0,106610.0,0.8263766]
[1762207641396,0.15245048,106620.0,106610.0,0.87659059]
[1762207641590,0.05864268,106620.0,106610.0,0.87659059]
[1762207642694,0.15245038,106620.0,106610.0,0.52736049]
[1762207642895,0.24925433,106620.0,106610.0,0.49344049]
[1762207643099,0.24925433,106620.0,106610.0,0.51497049]
[1762207643698,0.15245038,106620.0,106610.0,0.51497049]
[1762207644399,0.21849203,106620.0,106610.0,0.51497049]
[1762207645495,0.21849203,106620.0,106610.0,0.42115399]
[1762207645696,0.15245038,106620.0,106610.0,0.51497049]
[1762207646304,0.15245038,106620.0,106610.0,0.87577049]
[1762207646999,0.15245038,106620.0,106610.0,0.51497049]
[1762207649802,0.05864268,106620.0,106610.0,0.51497049]
[1762207651105,0.04600268,106620.0,106610.0,0.52165049]
[1762207651300,0.05956268,106620.0,106610.0,0.4711565]
[1762207651506,0.15337048,106620.0,106610.0,0.5150335]
[1762207652108,0.15337048,106620.0,106610.0,0.4644765]
[1762207652801,0.15337048,106620.0,106610.0,0.51503488]
[1762207653194,0.15337048,106620.0,106610.0,0.4644765]
[1762207654805,0.15337048,106620.0,106610.0,0.4711565]
[1762207655011,0.15337048,106620.0,106610.0,0.51503743]
[1762207655709,0.15337048,106620.0,106610.0,0.42122093]
[1762207656308,0.58021213,106620.0,106610.0,0.09434093]
[1762207656509,0.1516565,106610.0,106600.0,0.09544093]
[1762207656703,0.57849815,106610.0,106600.0,0.42180093]
[1762207657212,0.21769815,106610.0,106600.0,0.51562623]
[1762207657505,0.57849815,106610.0,106600.0,0.51562623]
[1762207657710,0.1516565,106610.0,106600.0,0.51562623]
[1762207657906,0.1516565,106610.0,106600.0,0.51662623]
[1762207659202,0.1516565,106610.0,106600.0,0.87742623]
[1762207661010,0.1516565,106610.0,106600.0,0.51662623]
[1762207661513,0.1516565,106610.0,106600.0,0.87742623]
[1762207662608,0.1516565,106610.0,106600.0,0.51662623]
[1762207665314,0.1516565,106610.0,106600.0,0.87742623]
[1762207668009,0.1516565,106610.0,106600.0,0.51662623]
[1762207668411,0.25732797,106610.0,106600.0,0.51662623]
[1762207668911,0.25732797,106610.0,106600.0,0.88410623]
[1762207669116,0.25732797,106610.0,106600.0,0.51662623]
[1762207669918,0.25732797,106610.0,106600.0,0.87742623]
[1762207670222,0.25732797,106610.0,106600.0,0.51662623]
[1762207670911,0.25732797,106610.0,106600.0,0.88410623]
[1762207672420,0.25732797,106610.0,106600.0,0.8335453]
[1762207673315,0.15252048,106620.0,106610.0,0.1377865]
[1762207673513,0.15252048,106620.0,106610.0,0.18838537]
[1762207673514,0.25819195,106620.0,106610.0,0.18838537]
[1762207673713,0.64093969,106620.0,106610.0,0.18838537]
[1762207673919,0.28013969,106620.0,106610.0,0.18838537]
[1762207674109,0.2801394,106620.0,106610.0,0.18838537]
[1762207674514,0.6409394,106620.0,106610.0,0.18838537]
[1762207675823,0.74661087,106620.0,106610.0,0.18838537]
[1762207676020,0.38581087,106620.0,106610.0,0.18838537]
[1762207676821,0.2801394,106620.0,106610.0,0.18838537]
[1762207677222,0.38580845,106620.0,106610.0,0.18838537]
[1762207680430,0.74660845,106620.0,106610.0,0.09456887]
[1762207680926,0.74660845,106620.0,106610.0,0.18838547]
[1762207681123,0.53526551,106620.0,106610.0,0.18838547]
[1762207681316,0.28013698,106620.0,106610.0,0.18838547]
[1762207681723,0.36386342,106620.0,106610.0,0.18838547]
[1762207683322,0.04515268,106620.0,106610.0,0.25013807]
[1762207683622,0.04515268,106620.0,106610.0,0.31680131]
[1762207683823,0.04515268,106620.0,106610.0,0.67760131]
[1762207684823,0.02242268,106620.0,106610.0,0.67760131]
[1762207685021,0.00011268,106620.0,106610.0,0.67760131]
[1762207685519,0.00011268,106620.0,106610.0,0.78327278]
[1762207685722,0.39182823,106650.0,106640.0,0.1444402]
[1762207685927,0.39182823,106650.0,106640.0,0.62692637]
[1762207686225,0.6271711,106650.0,106640.0,0.4274647]
[1762207686422,0.6271711,106650.0,106640.0,0.4207847]
[1762207686626,0.52154335,106650.0,106640.0,0.5145749]
[1762207686826,0.62721482,106650.0,106640.0,0.5145749]
[1762207687016,0.15075519,106650.0,106640.0,0.62692637]
[1762207687221,0.04508372,106650.0,106640.0,0.62692637]
[1762207687421,4.372e-05,106650.0,106640.0,0.62692637]
[1762207687622,4.372e-05,106650.0,106640.0,0.98772637]
[1762207687824,4.372e-05,106650.0,106640.0,1.09339784]
[1762207688125,4.372e-05,106650.0,106640.0,0.98772637]
[1762207688320,0.04504,106670.0,106660.0,0.1004486]
[1762207688531,0.61843057,106680.0,106670.0,0.04397]
[1762207688830,0.25763057,106680.0,106670.0,0.04397]
[1762207689030,0.1519591,106680.0,106670.0,0.1377338]
[1762207689226,0.25763057,106680.0,106670.0,0.04397]
[1762207689729,0.25863057,106680.0,106670.0,0.04397]
[1762207689930,0.26736632,106680.0,106670.0,0.04397]
[1762207690633,0.26636632,106680.0,106670.0,0.04397]
[1762207690828,0.26836632,106680.0,106670.0,0.04397]
[1762207691333,0.17460722,106680.0,106670.0,0.1377338]
[1762207691925,0.002,106680.0,106670.0,0.25577527]
[1762207692231,0.002,106680.0,106670.0,0.66718997]
[1762207692435,0.002,106680.0,106670.0,0.61657527]
[1762207693324,0.25962647,106680.0,106670.0,0.40477]
[1762207693529,0.25962647,106680.0,106670.0,0.41714]
[1762207693929,0.25962647,106680.0,106670.0,0.5109038]
[1762207694133,0.25962647,106680.0,106670.0,0.61657527]
[1762207695332,0.25962647,106680.0,106670.0,0.04397]
[1762207695635,0.36529794,106680.0,106670.0,0.37005]
[1762207695932,0.72609794,106680.0,106670.0,0.37005]
[1762207696627,0.52667147,106680.0,106670.0,0.4638138]
[1762207696834,0.62042647,106680.0,106670.0,0.4638138]
[1762207697327,0.25962647,106680.0,106670.0,0.4638138]
[1762207697531,0.25962647,106680.0,106670.0,0.8246138]
[1762207697733,0.25962647,106680.0,106670.0,0.37005]
[1762207697931,0.62042647,106680.0,106670.0,0.37005]
[1762207698234,0.25962647,106680.0,106670.0,0.37005]
[1762207699436,0.25962647,106680.0,106670.0,0.4638138]
[1762207699636,0.153955,106680.0,106670.0,0.8246138]
[1762207699830,0.25962647,106680.0,106670.0,0.8246138]
[1762207700129,0.25962647,106680.0,106670.0,0.4638138]
[1762207701140,0.25962647,106680.0,106670.0,0.8246138]
[1762207702037,0.0602,106680.0,106670.0,0.93028527]
[1762207702738,0.16587147,106680.0,106670.0,0.93028527]
[1762207703037,0.002,106680.0,106670.0,0.94265527]
[1762207703337,0.02502,106680.0,106670.0,0.94265527]
[1762207703538,0.04691,106680.0,106670.0,0.94265527]
[1762207704333,0.04691,106680.0,106670.0,0.88973966]
[1762207705234,0.138665,106680.0,106670.0,0.8369838]
[1762207705434,0.153375,106680.0,106670.0,0.8246138]
[1762207705938,0.001,106680.0,106670.0,0.88973966]
[1762207706141,0.02402,106680.0,106670.0,0.89847879]
[1762207707334,0.04591,106680.0,106670.0,0.8369838]
[1762207707534,0.05862,106680.0,106670.0,0.8369838]
[1762207707738,0.138665,106680.0,106670.0,0.8369838]
[1762207711740,0.1504238,106670.0,106660.0,0.04411]
[1762207711947,0.1504238,106670.0,106660.0,0.37007]
[1762207711948,0.56397966,106670.0,106660.0,0.37007]
[1762207712145,0.20317966,106670.0,106660.0,0.37007]
[1762207712946,0.20317966,106670.0,106660.0,0.4638426]
[1762207713147,0.1504238,106670.0,106660.0,0.4638426]
[1762207713846,0.1524238,106670.0,106660.0,0.4638426]
[1762207714143,0.1524238,106670.0,106660.0,0.8246426]
[1762207715445,0.1524238,106670.0,106660.0,0.8752573]
[1762207715845,0.1524238,106670.0,106660.0,0.4206847]
[1762207716839,0.20517966,106670.0,106660.0,0.4206847]
[1762207717041,0.20317966,106670.0,106660.0,0.4206847]
[1762207717347,0.20417966,106670.0,106660.0,0.4206847]
[1762207718246,0.1514238,106670.0,106660.0,0.4206847]
[1762207718445,0.16028416,106670.0,106660.0,0.8367226]
[1762207718646,0.16028416,106670.0,106660.0,0.94009316]
[1762207718647,0.11643416,106670.0,106660.0,0.94009316]
[1762207718846,0.16028416,106670.0,106660.0,0.94009316]
[1762207719247,0.17309416,106670.0,106660.0,0.4206847]
[1762207720946,0.17534672,106670.0,106660.0,0.4206847]
[1762207721547,0.17534672,106670.0,106660.0,0.5144574]
[1762207721848,0.17534672,106670.0,106660.0,0.8752574]
[1762207724649,0.16253672,106670.0,106660.0,0.8873374]
[1762207724850,0.06877292,106670.0,106660.0,0.8873374]
[1762207725351,0.16253672,106670.0,106660.0,0.8873374]
[1762207726448,0.14086636,106670.0,106660.0,0.8873374]
[1762207727952,0.02553256,106670.0,106660.0,0.8873374]
[1762207728245,0.04800256,106670.0,106660.0,0.94009326]
[1762207729444,0.04700256,106670.0,106660.0,0.94009326]
[1762207729651,0.14076636,106670.0,106660.0,0.94009326]
[1762207730351,0.14176636,106670.0,106660.0,0.94009326]
[1762207730741,0.14176636,106670.0,106660.0,0.88947856]
[1762207732155,0.04800256,106670.0,106660.0,0.88947856]
[1762207732350,0.5162666,106690.0,106680.0,0.1441151]
[1762207732554,0.5162666,106690.0,106680.0,0.52060436]
[1762207733552,0.5182666,106690.0,106680.0,0.51392436]
[1762207735753,0.5182666,106690.0,106680.0,0.42016926]
[1762207735953,0.57102246,106690.0,106680.0,0.42016926]
[1762207736753,0.57102246,106690.0,106680.0,0.51392426]
[1762207739059,0.57102246,106690.0,106680.0,0.09424926]
[1762207739259,0.57102246,106690.0,106680.0,0.45382972]
[1762207739760,0.57102246,106690.0,106680.0,0.40326046]
[1762207740061,0.57102206,106690.0,106680.0,0.54758472]
[1762207741356,0.57102206,106690.0,106680.0,0.45382972]
[1762207742258,0.57102206,106690.0,106680.0,0.54758472]
[1762207742660,0.57102206,106690.0,106680.0,0.51388426]
[1762207743978,0.57102206,106690.0,106680.0,0.42012926]
[1762207744273,0.57102206,106690.0,106680.0,0.45381953]
[1762207745264,1.18393792,106690.0,106680.0,0.03369027]
[1762207745671,0.89686206,106690.0,106680.0,0.03369027]
[1762207746064,1.18393792,106690.0,106670.0,0.08425953]
[1762207746270,0.61910672,106680.0,106670.0,0.03369027]
[1762207746672,0.61910672,106680.0,106670.0,0.05594027]
[1762207746972,0.61910672,106680.0,106670.0,0.07737027]
[1762207747178,0.56635086,106680.0,106670.0,0.17113407]
[1762207748073,0.152795,106680.0,106670.0,0.22170333]
[1762207748778,0.20555086,106680.0,106670.0,0.22170333]
[1762207749079,0.20755086,106680.0,106670.0,0.22170333]
[1762207752277,0.20755086,106680.0,106670.0,0.12793953]
[1762207752780,0.20755086,106680.0,106670.0,0.22170333]
[1762207754681,0.04756,106680.0,106670.0,0.19469306]
[1762207754882,0.04756,106680.0,106670.0,0.24744892]
[1762207755082,0.04756,106680.0,106670.0,0.62510535]
[1762207755282,0.04756,106680.0,106670.0,0.57234949]
[1762207755781,0.04756,106680.0,106670.0,0.63405139]
[1762207755782,0.002,106680.0,106670.0,0.63405139]
[1762207756286,0.04637,106690.0,106680.0,0.1446949]
[1762207756474,0.04637,106690.0,106680.0,0.88178186]
[1762207757187,0.1534661,106690.0,106680.0,0.88178186]
[1762207758684,0.04637,106690.0,106680.0,0.88178186]
[1762207761482,0.1401162,106690.0,106680.0,0.88178186]
[1762207761894,0.04637,106690.0,106680.0,0.88178186]
[1762207762893,0.1534662,106690.0,106680.0,0.88178186]
[1762207763085,0.05972,106690.0,106680.0,0.88178186]
[1762207763789,0.1534662,106690.0,106680.0,0.88178186]
[1762207763986,0.05972,106690.0,106680.0,0.88178186]
[1762207764380,0.13884779,106690.0,106680.0,0.96090965]
[1762207765196,0.12549779,106690.0,106680.0,0.96090965]
[1762207765690,0.02502,106690.0,106680.0,0.98955048]
[1762207765889,0.003,106690.0,106680.0,0.96087428]
[1762207766289,0.003,106690.0,106680.0,0.98955048]
[1762207766688,0.003,106690.0,106680.0,0.91042269]
[1762207766888,0.003,106690.0,106680.0,0.98955048]
[1762207767396,0.003,106690.0,106680.0,1.05697617]
[1762207768203,0.59253269,106720.0,106710.0,0.1379886]
[1762207768388,0.13800779,106720.0,106710.0,0.85812176]
[1762207768687,0.13800779,106720.0,106710.0,0.90854151]
[1762207768889,0.04553,106720.0,106710.0,0.6335493]
[1762207769095,0.60438027,106730.0,106720.0,0.1379798]
[1762207769296,0.60438027,106730.0,106720.0,0.17156253]
[1762207769993,0.60438027,106730.0,106720.0,0.04426]
[1762207770798,0.60938027,106730.0,106720.0,0.04426]
[1762207771390,0.1523498,106720.0,106710.0,0.40356273]
[1762207771602,0.31060538,106720.0,106710.0,0.40356273]
[1762207771896,0.31060538,106720.0,106710.0,0.49729133]
[1762207772101,0.31060538,106720.0,106710.0,0.40356273]
[1762207773404,0.31460538,106720.0,106710.0,0.40356273]
[1762207774003,0.31460538,106720.0,106710.0,0.49725133]
[1762207774201,0.67540538,106720.0,106710.0,0.49725133]
[1762207774404,0.31460538,106720.0,106710.0,0.49725133]
[1762207776304,0.31360538,106720.0,106710.0,0.49725133]
[1762207778098,0.23447759,106720.0,106710.0,0.49725133]
[1762207778508,0.31360538,106720.0,106710.0,0.49725133]
[1762207778808,0.31360538,106720.0,106710.0,0.85805133]
[1762207779006,0.31360538,106720.0,106710.0,0.49725133]
[1762207779200,0.31360538,106720.0,106710.0,0.40352273]
[1762207779201,0.67440538,106720.0,106710.0,0.40352273]
[1762207779400,0.67440538,106720.0,106710.0,0.49725133]
[1762207780102,0.67440538,106720.0,106710.0,0.40352273]
[1762207780296,0.67440538,106720.0,106710.0,0.49725133]
[1762207780609,0.67440538,106720.0,106710.0,0.40352273]
[1762207780908,0.67340538,106720.0,106710.0,0.40352273]
[1762207783211,0.67340538,106720.0,106710.0,0.04426]
[1762207783407,0.1523586,106710.0,106700.0,0.45386248]
[1762207783710,0.59228639,106710.0,106700.0,0.40344273]
[1762207784208,0.5131586,106710.0,106700.0,0.49718013]
[1762207784411,0.23148639,106710.0,106700.0,0.49718013]
[1762207785217,0.23148639,106710.0,106700.0,0.54759988]
[1762207785711,0.23148639,106710.0,106700.0,0.22199988]
[1762207789815,0.1523586,106710.0,106700.0,0.22199988]
[1762207790014,0.23148639,106710.0,106700.0,0.22199988]
[1762207791414,0.23148639,106710.0,106700.0,0.18841715]
[1762207792610,0.23148639,106710.0,106700.0,0.54921715]
[1762207798713,0.23148639,106710.0,106700.0,0.4987974]
[1762207800523,0.1523586,106710.0,106700.0,0.4987974]
[1762207800723,0.23148639,106710.0,106700.0,0.56602373]
[1762207800924,0.23148639,106710.0,106700.0,0.04426]
[1762207801126,0.59228639,106710.0,106700.0,0.09477872]
[1762207801426,0.59228639,106710.0,106700.0,0.18851582]
[1762207801929,0.59228639,106710.0,106700.0,0.09477872]
[1762207802230,0.59428639,106710.0,106700.0,0.09477872]
[1762207802730,0.59428639,106710.0,106700.0,0.18851582]
[1762207803232,0.23348639,106710.0,106700.0,0.18851582]
[1762207804118,0.23348639,106710.0,106700.0,0.09477872]
[1762207804318,0.67341418,106710.0,106700.0,0.05051872]
[1762207804524,0.67341418,106710.0,106700.0,0.03369865]
[1762207805024,0.67341418,106710.0,106690.0,0.143949]
[1762207805025,0.1505371,106700.0,106690.0,0.143949]
[1762207805226,0.53301986,106700.0,106690.0,0.143949]
[1762207805427,0.69127544,106700.0,106690.0,0.143949]
[1762207806622,0.66959268,106700.0,106690.0,0.143949]
[1762207807724,0.66959268,106700.0,106690.0,0.0502044]
[1762207808424,0.66959268,106700.0,106690.0,0.1439503]
[1762207809639,0.67159268,106700.0,106690.0,0.1439503]
[1762207812228,0.67159268,106700.0,106690.0,0.0502044]
[1762207812435,0.67159268,106700.0,106690.0,0.1439503]